Workbook

Sheet 2023년 구매실적(월별) - 자체구매 현황
A1: 2023년 구매실적(월별) - 자체구매 현황(단위 : 원) | O1: 2024-03-28 17:11:25 PM
A4: 총구매액 | B4: 총구매액 | C4: 2023년도 (실적) | O4: 합계
C5: 1/4 | F5: 2/4 | I5: 3/4 | L5: 4/4
C6: 1월 | D6: 2월 | E6: 3월 | F6: 4월 | G6: 5월 | H6: 6월 | I6: 7월 | J6: 8월 | K6: 9월 | L6: 10월 | M6: 11월 | N6: 12월
A7: 총구매액 | B7: 계 | C7: =SUM(C8:C10) -> 183,187,830 | D7: 273,863,122 | E7: 438,341,075 | F7: 492,653,402 | G7: 593,046,360 | H7: 1,875,782,165 | I7: 543,521,974 | J7: 477,735,181 | K7: 511,308,764 | L7: 841,582,087 | M7: 1,004,088,584 | N7: 942,260,995 | O7: =SUM(C7:N7) -> 8,177,371,539
B8: 물품 | C8: 126,808,390 | D8: 188,806,682 | E8: 258,122,505 | F8: 299,709,712 | G8: 275,272,610 | H8: 1,223,165,985 | I8: 260,717,424 | J8: 210,659,381 | K8: 239,275,604 | L8: 370,574,137 | M8: 315,483,894 | N8: 451,874,925 | O8: 4,220,471,249
B9: 공사 | C9: 7,061,800 | D9: 24,049,400 | E9: 27,290,330 | F9: 62,352,880 | G9: 100,093,880 | H9: 73,792,920 | I9: 25,323,890 | J9: 55,698,580 | K9: 33,624,850 | L9: 143,430,200 | M9: 380,997,500 | N9: 59,843,310 | O9: 993,559,540
B10: 용역 | C10: 49,317,640 | D10: 61,007,040 | E10: 152,928,240 | F10: 130,590,810 | G10: 217,679,870 | H10: 578,823,260 | I10: 257,480,660 | J10: 211,377,220 | K10: 238,408,310 | L10: 327,577,750 | M10: 307,607,190 | N10: 430,542,760 | O10: 2,963,340,750
A11: 중소기업제품구매액 | B11: 계 | C11: =SUM(C12:C14) -> 103,376,770 | D11: 193,332,490 | E11: 319,852,435 | F11: 423,851,730 | G11: 531,528,740 | H11: 1,791,791,000 | I11: 456,977,040 | J11: 436,289,180 | K11: 426,408,800 | L11: 765,799,610 | M11: 911,593,020 | N11: 823,242,840 | O11: 7,184,043,655
B12: 물품 | C12: 61,210,780 | D12: 133,636,790 | E12: 199,407,095 | F12: 248,403,270 | G12: 226,354,490 | H12: 1,178,047,350 | I12: 199,310,430 | J12: 195,391,440 | K12: 170,676,900 | L12: 315,332,740 | M12: 266,530,720 | N12: 394,131,860 | O12: 3,588,433,865
B13: 공사 | C13: 7,061,800 | D13: 24,049,400 | E13: 27,290,330 | F13: 61,786,380 | G13: 100,093,880 | H13: 72,346,920 | I13: 25,323,890 | J13: 55,698,580 | K13: 33,624,850 | L13: 143,430,200 | M13: 380,997,500 | N13: 59,843,310 | O13: 991,547,040
B14: 용역 | C14: 35,104,190 | D14: 35,646,300 | E14: 93,155,010 | F14: 113,662,080 | G14: 205,080,370 | H14: 541,396,730 | I14: 232,342,720 | J14: 185,199,160 | K14: 222,107,050 | L14: 307,036,670 | M14: 264,064,800 | N14: 369,267,670 | O14: 2,604,062,750
A15: 여성기업제품구매액 | B15: 계 | C15: =SUM(C16:C18) -> 18,885,000 | D15: 35,420,080 | E15: 55,503,900 | F15: 53,881,740 | G15: 40,855,680 | H15: 891,360,270 | I15: 33,154,710 | J15: 48,281,250 | K15: 49,762,530 | L15: 118,333,150 | M15: 54,528,540 | N15: 74,659,120 | O15: 1,474,625,970
B16: 물품 | C16: 0 | D16: 26,213,880 | E16: 26,118,170 | F16: 38,863,860 | G16: 27,457,680 | H16: 870,058,050 | I16: 21,569,410 | J16: 39,465,350 | K16: 44,303,530 | L16: 15,196,150 | M16: 13,208,240 | N16: 42,485,720 | O16: 1,164,940,040
B17: 공사 | C17: 0 | D17: 5,481,400 | E17: 6,756,330 | F17: 4,273,280 | G17: 2,739,000 | H17: 8,293,520 | I17: 0 | J17: 8,397,000 | K17: 0 | L17: 88,758,600 | M17: 37,132,500 | N17: 18,605,000 | O17: 180,436,630
B18: 용역 | C18: 18,885,000 | D18: 3,724,800 | E18: 22,629,400 | F18: 10,744,600 | G18: 10,659,000 | H18: 13,008,700 | I18: 11,585,300 | J18: 418,900 | K18: 5,459,000 | L18: 14,378,400 | M18: 4,187,800 | N18: 13,568,400 | O18: 129,249,300
A19: 장애인기업제품구매액 | B19: 계 | C19: =SUM(C20:C22) -> 4,031,000 | D19: 3,592,500 | E19: 5,191,100 | F19: 7,608,100 | G19: 12,900,700 | H19: 2,912,200 | I19: 17,767,000 | J19: 6,795,300 | K19: 5,019,150 | L19: 8,275,250 | M19: 4,253,500 | N19: 18,123,430 | O19: 96,469,230
B20: 물품 | C20: 4,031,000 | D20: 2,484,500 | E20: 4,476,100 | F20: 3,036,850 | G20: 8,154,700 | H20: 2,395,200 | I20: 6,929,750 | J20: 2,354,600 | K20: 5,019,150 | L20: 4,104,400 | M20: 4,253,500 | N20: 17,292,180 | O20: 64,531,930
B21: 공사 | C21: 0 | D21: 0 | E21: 715,000 | F21: 1,760,000 | G21: 4,746,000 | H21: 517,000 | I21: 8,851,000 | J21: 1,965,700 | K21: 0 | L21: 3,339,600 | M21: 0 | N21: 0 | O21: 21,894,300
B22: 용역 | C22: 0 | D22: 1,108,000 | E22: 0 | F22: 2,811,250 | G22: 0 | H22: 0 | I22: 1,986,250 | J22: 2,475,000 | K22: 0 | L22: 831,250 | M22: 0 | N22: 831,250 | O22: 10,043,000
B24: 구분 | C24: 2023년도 (실적) | O24: 합계
C25: 1월 | D25: 2월 | E25: 3월 | F25: 4월 | G25: 5월 | H25: 6월 | I25: 7월 | J25: 8월 | K25: 9월 | L25: 10월 | M25: 11월 | N25: 12월
A26: 기술개발제품 | B26: 본부 | C26: 0 | D26: 0 | E26: 0 | F26: 0 | G26: 0 | H26: 838,400,000 | I26: 0 | J26: 0 | K26: 0 | L26: 31,412,500 | M26: 0 | N26: 0 | O26: =SUM(C26:N26) -> 869,812,500
B27: 소속기관 | C27: 0 | D27: 0 | E27: 0 | F27: 0 | G27: 0 | H27: 0 | I27: 0 | J27: 0 | K27: 0 | L27: 0 | M27: 0 | N27: 0 | O27: =SUM(C27:N27) -> 0
B28: 계 | C28: =SUM(C26:C27) -> 0 | D28: 0 | E28: 0 | F28: 0 | G28: 0 | H28: 838,400,000 | I28: 0 | J28: 0 | K28: 0 | L28: 31,412,500 | M28: 0 | N28: 0 | O28: =SUM(C27:N27) -> 0
B30: 구분 | C30: 2023년도 (실적) | O30: 합계
C31: 1월 | D31: 2월 | E31: 3월 | F31: 4월 | G31: 5월 | H31: 6월 | I31: 7월 | J31: 8월 | K31: 9월 | L31: 10월 | M31: 11월 | N31: 12월
A32: 공사용자재직접구매실적 | B32: 본부 | C32: 0 | D32: 0 | E32: 0 | F32: 0 | G32: 0 | H32: 838,400,000 | I32: 0 | J32: 0 | K32: 0 | L32: 0 | M32: 0 | N32: 0 | O32: =SUM(C32:N32) -> 838,400,000
B33: 소속기관 | C33: 0 | D33: 0 | E33: 0 | F33: 0 | G33: 0 | H33: 0 | I33: 0 | J33: 0 | K33: 0 | L33: 0 | M33: 0 | N33: 0 | O33: =SUM(C33:N33) -> 0
B34: 계 | C34: =SUM(C32:C33) -> 0 | D34: 0 | E34: 0 | F34: 0 | G34: 0 | H34: 838,400,000 | I34: 0 | J34: 0 | K34: 0 | L34: 0 | M34: 0 | N34: 0 | O34: =SUM(C34:N34) -> 838,400,000
A36: Copyright(c) 중소기업제품 공공구매 종합정보망(smpp)

Sheet 2023년 구매실적(월별) - 조달구매 현황
A1: 2023년 구매실적(월별) - 조달구매 현황(단위 : 원) | O1: 2024-03-28 17:13:56 PM
A4: 총구매액 | B4: 총구매액 | C4: 2023년도 (실적) | O4: 합계
C5: 1/4 | F5: 2/4 | I5: 3/4 | L5: 4/4
C6: 1월 | D6: 2월 | E6: 3월 | F6: 4월 | G6: 5월 | H6: 6월 | I6: 7월 | J6: 8월 | K6: 9월 | L6: 10월 | M6: 11월 | N6: 12월
A7: 총구매액 | B7: 계 | C7: =SUM(C8:C10) -> 0 | D7: 15,341,200 | E7: 32,147,270 | F7: 20,267,580 | G7: 463,446,560 | H7: 115,151,930 | I7: 14,887,850 | J7: 962,160 | K7: 0 | L7: 23,445,330 | M7: 4,634,620 | N7: 56,503,790 | O7: =SUM(C7:N7) -> 746,788,290
B8: 물품 | C8: 0 | D8: 15,341,200 | E8: 31,967,270 | F8: 20,267,580 | G8: 463,406,560 | H8: 115,121,930 | I8: 14,887,850 | J8: 962,160 | K8: 0 | L8: 23,445,330 | M8: 4,584,620 | N8: 56,389,120 | O8: 746,373,620
B9: 공사 | C9: 0 | D9: 0 | E9: 0 | F9: 0 | G9: 0 | H9: 0 | I9: 0 | J9: 0 | K9: 0 | L9: 0 | M9: 0 | N9: 0 | O9: 0
B10: 용역 | C10: 0 | D10: 0 | E10: 180,000 | F10: 0 | G10: 40,000 | H10: 30,000 | I10: 0 | J10: 0 | K10: 0 | L10: 0 | M10: 50,000 | N10: 114,670 | O10: 414,670
A11: 중소기업제품구매액 | B11: 계 | C11: =SUM(C12:C14) -> 0 | D11: 15,341,200 | E11: 16,713,500 | F11: 9,646,650 | G11: 463,446,560 | H11: 53,990,920 | I11: 14,787,940 | J11: 962,160 | K11: 0 | L11: 8,899,790 | M11: 4,634,620 | N11: 56,503,790 | O11: 644,927,130
B12: 물품 | C12: 0 | D12: 15,341,200 | E12: 16,713,500 | F12: 9,646,650 | G12: 463,406,560 | H12: 53,960,920 | I12: 14,787,940 | J12: 962,160 | K12: 0 | L12: 8,899,790 | M12: 4,584,620 | N12: 56,389,120 | O12: 644,692,460
B13: 공사 | C13: 0 | D13: 0 | E13: 0 | F13: 0 | G13: 0 | H13: 0 | I13: 0 | J13: 0 | K13: 0 | L13: 0 | M13: 0 | N13: 0 | O13: 0
B14: 용역 | C14: 0 | D14: 0 | E14: 0 | F14: 0 | G14: 40,000 | H14: 30,000 | I14: 0 | J14: 0 | K14: 0 | L14: 0 | M14: 50,000 | N14: 114,670 | O14: 234,670
A15: 여성기업제품구매액 | B15: 계 | C15: =SUM(C16:C18) -> 0 | D15: 0 | E15: 2,591,530 | F15: 0 | G15: 0 | H15: 51,970,770 | I15: 12,878,200 | J15: 962,160 | K15: 0 | L15: 0 | M15: 0 | N15: 0 | O15: 68,402,660
B16: 물품 | C16: 0 | D16: 0 | E16: 2,591,530 | F16: 0 | G16: 0 | H16: 51,970,770 | I16: 12,878,200 | J16: 962,160 | K16: 0 | L16: 0 | M16: 0 | N16: 0 | O16: 68,402,660
B17: 공사 | C17: 0 | D17: 0 | E17: 0 | F17: 0 | G17: 0 | H17: 0 | I17: 0 | J17: 0 | K17: 0 | L17: 0 | M17: 0 | N17: 0 | O17: 0
B18: 용역 | C18: 0 | D18: 0 | E18: 0 | F18: 0 | G18: 0 | H18: 0 | I18: 0 | J18: 0 | K18: 0 | L18: 0 | M18: 0 | N18: 0 | O18: 0
A19: 장애인기업제품구매액 | B19: 계 | C19: =SUM(C20:C22) -> 0 | D19: 0 | E19: 0 | F19: 0 | G19: 0 | H19: 0 | I19: 0 | J19: 0 | K19: 0 | L19: 0 | M19: 0 | N19: 0 | O19: 0
B20: 물품 | C20: 0 | D20: 0 | E20: 0 | F20: 0 | G20: 0 | H20: 0 | I20: 0 | J20: 0 | K20: 0 | L20: 0 | M20: 0 | N20: 0 | O20: 0
B21: 공사 | C21: 0 | D21: 0 | E21: 0 | F21: 0 | G21: 0 | H21: 0 | I21: 0 | J21: 0 | K21: 0 | L21: 0 | M21: 0 | N21: 0 | O21: 0
B22: 용역 | C22: 0 | D22: 0 | E22: 0 | F22: 0 | G22: 0 | H22: 0 | I22: 0 | J22: 0 | K22: 0 | L22: 0 | M22: 0 | N22: 0 | O22: 0
B24: 구분 | C24: 2023년도 (실적) | O24: 합계
C25: 1월 | D25: 2월 | E25: 3월 | F25: 4월 | G25: 5월 | H25: 6월 | I25: 7월 | J25: 8월 | K25: 9월 | L25: 10월 | M25: 11월 | N25: 12월
A26: 기술개발제품 | B26: 본부 | C26: 0 | D26: 16,172,090 | E26: 2,649,570 | F26: 0 | G26: 3,130,000 | H26: 0 | I26: 0 | J26: 0 | K26: 0 | L26: 10,625,000 | M26: 0 | N26: 1,320,000 | O26: =SUM(C26:N26) -> 33,896,660
B27: 소속기관 | C27: 0 | D27: 0 | E27: 0 | F27: 0 | G27: 0 | H27: 0 | I27: 0 | J27: 0 | K27: 0 | L27: 0 | M27: 0 | N27: 0 | O27: =SUM(C27:N27) -> 0
B28: 계 | C28: =SUM(C26:C27) -> 0 | D28: 16,172,090 | E28: 2,649,570 | F28: 0 | G28: 3,130,000 | H28: 0 | I28: 0 | J28: 0 | K28: 0 | L28: 10,625,000 | M28: 0 | N28: 1,320,000 | O28: =SUM(C27:N27) -> 0
B30: 구분 | C30: 2023년도 (실적) | O30: 합계
C31: 1월 | D31: 2월 | E31: 3월 | F31: 4월 | G31: 5월 | H31: 6월 | I31: 7월 | J31: 8월 | K31: 9월 | L31: 10월 | M31: 11월 | N31: 12월
A32: 공사용자재직접구매실적 | B32: 본부 | C32: 0 | D32: 0 | E32: 0 | F32: 0 | G32: 0 | H32: 0 | I32: 0 | J32: 0 | K32: 0 | L32: 0 | M32: 0 | N32: 38,172,080 | O32: =SUM(C32:N32) -> 38,172,080
B33: 소속기관 | C33: 0 | D33: 0 | E33: 0 | F33: 0 | G33: 0 | H33: 0 | I33: 0 | J33: 0 | K33: 0 | L33: 0 | M33: 0 | N33: 0 | O33: =SUM(C33:N33) -> 0
B34: 계 | C34: =SUM(C32:C33) -> 0 | D34: 0 | E34: 0 | F34: 0 | G34: 0 | H34: 0 | I34: 0 | J34: 0 | K34: 0 | L34: 0 | M34: 0 | N34: 38,172,080 | O34: =SUM(C34:N34) -> 38,172,080
A36: Copyright(c) 중소기업제품 공공구매 종합정보망(smpp)

Sheet 2023년 구매실적(월별) - 합계
A1: 2023년 구매실적(월별) - 현황(단위 : 원) | O1: 2024-03-28 17:06:16 PM
A4: 총구매액 | B4: 총구매액 | C4: 2023년도 (실적) | O4: 합계
C5: 1/4 | F5: 2/4 | I5: 3/4 | L5: 4/4
C6: 1월 | D6: 2월 | E6: 3월 | F6: 4월 | G6: 5월 | H6: 6월 | I6: 7월 | J6: 8월 | K6: 9월 | L6: 10월 | M6: 11월 | N6: 12월
A7: 총구매액 | B7: 계 | C7: =SUM(C8:C10) -> 183,187,830 | D7: 289,204,322 | E7: 470,488,345 | F7: 512,920,982 | G7: 1,056,492,920 | H7: 1,990,934,095 | I7: 558,409,824 | J7: 478,697,341 | K7: 511,308,764 | L7: 865,027,417 | M7: 1,008,723,204 | N7: 998,764,785 | O7: =SUM(C7:N7) -> 8,924,159,829
B8: 물품 | C8: 126,808,390 | D8: 204,147,882 | E8: 290,089,775 | F8: 319,977,292 | G8: 738,679,170 | H8: 1,338,287,915 | I8: 275,605,274 | J8: 211,621,541 | K8: 239,275,604 | L8: 394,019,467 | M8: 320,068,514 | N8: 508,264,045 | O8: 4,966,844,869
B9: 공사 | C9: 7,061,800 | D9: 24,049,400 | E9: 27,290,330 | F9: 62,352,880 | G9: 100,093,880 | H9: 73,792,920 | I9: 25,323,890 | J9: 55,698,580 | K9: 33,624,850 | L9: 143,430,200 | M9: 380,997,500 | N9: 59,843,310 | O9: 993,559,540
B10: 용역 | C10: 49,317,640 | D10: 61,007,040 | E10: 153,108,240 | F10: 130,590,810 | G10: 217,719,870 | H10: 578,853,260 | I10: 257,480,660 | J10: 211,377,220 | K10: 238,408,310 | L10: 327,577,750 | M10: 307,657,190 | N10: 430,657,430 | O10: 2,963,755,420
A11: 중소기업제품구매액 | B11: 계 | C11: =SUM(C12:C14) -> 103,376,770 | D11: 208,673,690 | E11: 336,565,935 | F11: 433,498,380 | G11: 994,975,300 | H11: 1,845,781,920 | I11: 471,764,980 | J11: 437,251,340 | K11: 426,408,800 | L11: 774,699,400 | M11: 916,227,640 | N11: 879,746,630 | O11: 7,828,970,785
B12: 물품 | C12: 61,210,780 | D12: 148,977,990 | E12: 216,120,595 | F12: 258,049,920 | G12: 689,761,050 | H12: 1,232,008,270 | I12: 214,098,370 | J12: 196,353,600 | K12: 170,676,900 | L12: 324,232,530 | M12: 271,115,340 | N12: 450,520,980 | O12: 4,233,126,325
B13: 공사 | C13: 7,061,800 | D13: 24,049,400 | E13: 27,290,330 | F13: 61,786,380 | G13: 100,093,880 | H13: 72,346,920 | I13: 25,323,890 | J13: 55,698,580 | K13: 33,624,850 | L13: 143,430,200 | M13: 380,997,500 | N13: 59,843,310 | O13: 991,547,040
B14: 용역 | C14: 35,104,190 | D14: 35,646,300 | E14: 93,155,010 | F14: 113,662,080 | G14: 205,120,370 | H14: 541,426,730 | I14: 232,342,720 | J14: 185,199,160 | K14: 222,107,050 | L14: 307,036,670 | M14: 264,114,800 | N14: 369,382,340 | O14: 2,604,297,420
A15: 여성기업제품구매액 | B15: 계 | C15: =SUM(C16:C18) -> 18,885,000 | D15: 35,420,080 | E15: 58,095,430 | F15: 53,881,740 | G15: 40,855,680 | H15: 943,331,040 | I15: 46,032,910 | J15: 49,243,410 | K15: 49,762,530 | L15: 118,333,150 | M15: 54,528,540 | N15: 74,659,120 | O15: 1,543,028,630
B16: 물품 | C16: 0 | D16: 26,213,880 | E16: 28,709,700 | F16: 38,863,860 | G16: 27,457,680 | H16: 922,028,820 | I16: 34,447,610 | J16: 40,427,510 | K16: 44,303,530 | L16: 15,196,150 | M16: 13,208,240 | N16: 42,485,720 | O16: 1,233,342,700
B17: 공사 | C17: 0 | D17: 5,481,400 | E17: 6,756,330 | F17: 4,273,280 | G17: 2,739,000 | H17: 8,293,520 | I17: 0 | J17: 8,397,000 | K17: 0 | L17: 88,758,600 | M17: 37,132,500 | N17: 18,605,000 | O17: 180,436,630
B18: 용역 | C18: 18,885,000 | D18: 3,724,800 | E18: 22,629,400 | F18: 10,744,600 | G18: 10,659,000 | H18: 13,008,700 | I18: 11,585,300 | J18: 418,900 | K18: 5,459,000 | L18: 14,378,400 | M18: 4,187,800 | N18: 13,568,400 | O18: 129,249,300
A19: 장애인기업제품구매액 | B19: 계 | C19: =SUM(C20:C22) -> 4,031,000 | D19: 3,592,500 | E19: 5,191,100 | F19: 7,608,100 | G19: 12,900,700 | H19: 2,912,200 | I19: 17,767,000 | J19: 6,795,300 | K19: 5,019,150 | L19: 8,275,250 | M19: 4,253,500 | N19: 18,123,430 | O19: 96,469,230
B20: 물품 | C20: 4,031,000 | D20: 2,484,500 | E20: 4,476,100 | F20: 3,036,850 | G20: 8,154,700 | H20: 2,395,200 | I20: 6,929,750 | J20: 2,354,600 | K20: 5,019,150 | L20: 4,104,400 | M20: 4,253,500 | N20: 17,292,180 | O20: 64,531,930
B21: 공사 | C21: 0 | D21: 0 | E21: 715,000 | F21: 1,760,000 | G21: 4,746,000 | H21: 517,000 | I21: 8,851,000 | J21: 1,965,700 | K21: 0 | L21: 3,339,600 | M21: 0 | N21: 0 | O21: 21,894,300
B22: 용역 | C22: 0 | D22: 1,108,000 | E22: 0 | F22: 2,811,250 | G22: 0 | H22: 0 | I22: 1,986,250 | J22: 2,475,000 | K22: 0 | L22: 831,250 | M22: 0 | N22: 831,250 | O22: 10,043,000
B24: 구분 | C24: 2023년도 (실적) | O24: 합계
C25: 1월 | D25: 2월 | E25: 3월 | F25: 4월 | G25: 5월 | H25: 6월 | I25: 7월 | J25: 8월 | K25: 9월 | L25: 10월 | M25: 11월 | N25: 12월
A26: 기술개발제품 | B26: 본부 | C26: 0 | D26: 16,172,090 | E26: 2,649,570 | F26: 0 | G26: 3,130,000 | H26: 838,400,000 | I26: 0 | J26: 0 | K26: 0 | L26: 42,037,500 | M26: 0 | N26: 1,320,000 | O26: =SUM(C26:N26) -> 903,709,160
B27: 소속기관 | C27: 0 | D27: 0 | E27: 0 | F27: 0 | G27: 0 | H27: 0 | I27: 0 | J27: 0 | K27: 0 | L27: 0 | M27: 0 | N27: 0 | O27: =SUM(C27:N27) -> 0
B28: 계 | C28: =SUM(C26:C27) -> 0 | D28: 16,172,090 | E28: 2,649,570 | F28: 0 | G28: 3,130,000 | H28: 838,400,000 | I28: 0 | J28: 0 | K28: 0 | L28: 42,037,500 | M28: 0 | N28: 1,320,000 | O28: =SUM(C27:N27) -> 0
B30: 구분 | C30: 2023년도 (실적) | O30: 합계
C31: 1월 | D31: 2월 | E31: 3월 | F31: 4월 | G31: 5월 | H31: 6월 | I31: 7월 | J31: 8월 | K31: 9월 | L31: 10월 | M31: 11월 | N31: 12월
A32: 공사용자재직접구매실적 | B32: 본부 | C32: 0 | D32: 0 | E32: 0 | F32: 0 | G32: 0 | H32: 838,400,000 | I32: 0 | J32: 0 | K32: 0 | L32: 0 | M32: 0 | N32: 38,172,080 | O32: =SUM(C32:N32) -> 876,572,080
B33: 소속기관 | C33: 0 | D33: 0 | E33: 0 | F33: 0 | G33: 0 | H33: 0 | I33: 0 | J33: 0 | K33: 0 | L33: 0 | M33: 0 | N33: 0 | O33: =SUM(C33:N33) -> 0
B34: 계 | C34: =SUM(C32:C33) -> 0 | D34: 0 | E34: 0 | F34: 0 | G34: 0 | H34: 838,400,000 | I34: 0 | J34: 0 | K34: 0 | L34: 0 | M34: 0 | N34: 38,172,080 | O34: =SUM(C34:N34) -> 876,572,080
A36: Copyright(c) 중소기업제품 공공구매 종합정보망(smpp)
